[Event "*** MasterClass Titled Tuesday Blitz"]
[Site "Chess.com"]
[Date "2017.12.12"]
[Round "9"]
[White "aspired"]
[Black "matiss90"]
[Result "0-1"]
[WhiteElo "2510"]
[BlackElo "2352"]
[TimeControl "180+2"]
[EndTime "15:03:47 PST"]
[Termination "matiss90 won by resignation"]

1. e4 {[%clk 0:03:01.9]} 1... c5 {[%clk 0:03:00.4]} 2. Nf3 {[%clk 0:03:02.6]}
2... d6 {[%clk 0:03:01.3]} 3. Bb5+ {[%clk 0:03:03.1]} 3... Bd7 {[%clk
0:03:01.8]} 4. Bxd7+ {[%clk 0:02:59.2]} 4... Qxd7 {[%clk 0:03:03.5]} 5. O-O
{[%clk 0:02:59.9]} 5... Nf6 {[%clk 0:03:04.2]} 6. e5 {[%clk 0:02:58.9]} 6...
dxe5 {[%clk 0:03:04.5]} 7. Nxe5 {[%clk 0:03:00.8]} 7... Qc8 {[%clk 0:03:05.6]}
8. d3 {[%clk 0:02:57.2]} 8... Nc6 {[%clk 0:03:06.1]} 9. Bf4 {[%clk 0:02:53.8]}
9... e6 {[%clk 0:03:01]} 10. Qf3 {[%clk 0:02:52.9]} 10... Nd4 {[%clk 0:02:59.7]}
11. Qd1 {[%clk 0:02:51.7]} 11... Bd6 {[%clk 0:02:46.3]} 12. Re1 {[%clk
0:02:45.8]} 12... Qc7 {[%clk 0:02:42.9]} 13. Bg3 {[%clk 0:02:39.8]} 13... h5
{[%clk 0:02:41.7]} 14. Nf3 {[%clk 0:02:30.7]} 14... Bxg3 {[%clk 0:02:35.6]} 15.
hxg3 {[%clk 0:02:32.6]} 15... h4 {[%clk 0:02:33.9]} 16. Nxh4 {[%clk 0:02:24.4]}
16... O-O-O {[%clk 0:02:32.2]} 17. c3 {[%clk 0:02:13]} 17... g5 {[%clk
0:02:31.6]} 18. cxd4 {[%clk 0:02:07.7]} 18... gxh4 {[%clk 0:02:32]} 19. Qf3
{[%clk 0:02:06.7]} 19... Nd5 {[%clk 0:02:00.9]} 20. Nd2 {[%clk 0:01:43]} 20...
hxg3 {[%clk 0:01:59.1]} 21. fxg3 {[%clk 0:01:44.3]} 21... Rdg8 {[%clk
0:01:43.5]} 22. Nf1 {[%clk 0:01:33.9]} 22... Kb8 {[%clk 0:01:19.5]} 23. Rac1
{[%clk 0:01:32.1]} 23... Qa5 {[%clk 0:01:12.7]} 24. Rxc5 {[%clk 0:01:06.1]}
24... Qxe1 {[%clk 0:01:10.7]} 0-1

[Event "*** MasterClass Titled Tuesday Blitz"]
[Site "Chess.com"]
[Date "2017.12.12"]
[Round "9"]
[White "TijanaBlagojevic"]
[Black "chidori_boruto"]
[Result "0-1"]
[WhiteElo "2376"]
[BlackElo "2512"]
[TimeControl "180+2"]
[EndTime "15:04:04 PST"]
[Termination "chidori_boruto won by resignation"]

1. e4 {[%clk 0:03:01.9]} 1... c6 {[%clk 0:02:59.6]} 2. d4 {[%clk 0:03:01.8]}
2... d5 {[%clk 0:02:57.4]} 3. e5 {[%clk 0:03:03.3]} 3... Bf5 {[%clk 0:02:57.7]}
4. Nf3 {[%clk 0:03:04.3]} 4... e6 {[%clk 0:02:58.4]} 5. Be2 {[%clk 0:03:05.6]}
5... c5 {[%clk 0:02:59.7]} 6. O-O {[%clk 0:03:01.6]} 6... cxd4 {[%clk
0:03:00.8]} 7. Nxd4 {[%clk 0:03:02.1]} 7... Ne7 {[%clk 0:03:02.4]} 8. c4 {[%clk
0:02:54.9]} 8... Nbc6 {[%clk 0:03:03]} 9. Nb5 {[%clk 0:02:40.7]} 9... Nxe5
{[%clk 0:02:55.9]} 10. cxd5 {[%clk 0:02:41.1]} 10... Nxd5 {[%clk 0:02:53.7]} 11.
Nd4 {[%clk 0:02:38.9]} 11... Ne7 {[%clk 0:02:45.6]} 12. Nc3 {[%clk 0:02:33.6]}
12... a6 {[%clk 0:02:45]} 13. Bf4 {[%clk 0:02:31.8]} 13... N5c6 {[%clk
0:02:32.8]} 14. Nxf5 {[%clk 0:02:32.5]} 14... Nxf5 {[%clk 0:02:32.1]} 15. Qb3
{[%clk 0:02:28.7]} 15... Qc8 {[%clk 0:02:22.4]} 16. Na4 {[%clk 0:02:26.4]} 16...
Nfd4 {[%clk 0:02:19.4]} 17. Qd3 {[%clk 0:02:24.1]} 17... Qd8 {[%clk 0:02:12.7]}
18. Bh5 {[%clk 0:02:14.2]} 18... Qh4 {[%clk 0:01:57.5]} 19. g4 {[%clk
0:01:54.9]} 19... g6 {[%clk 0:01:41.8]} 20. Nb6 {[%clk 0:01:51.2]} 20... Rd8
{[%clk 0:01:39.4]} 21. Bc7 {[%clk 0:01:20.9]} 21... Bd6 {[%clk 0:01:33.7]} 22.
Bxd6 {[%clk 0:01:16.4]} 22... Rxd6 {[%clk 0:01:35.6]} 23. Nc4 {[%clk 0:01:08.7]}
23... Rd8 {[%clk 0:01:34.9]} 24. Qa3 {[%clk 0:00:43.3]} 24... gxh5 {[%clk
0:01:26.5]} 25. Nd6+ {[%clk 0:00:43.8]} 25... Rxd6 {[%clk 0:01:23]} 26. Qxd6
{[%clk 0:00:45.7]} 26... Qxg4+ {[%clk 0:01:23.8]} 27. Kh1 {[%clk 0:00:45.6]}
27... Qf3+ {[%clk 0:01:24.1]} 0-1

[Event "*** MasterClass Titled Tuesday Blitz"]
[Site "Chess.com"]
[Date "2017.12.12"]
[Round "9"]
[White "marreta84"]
[Black "Enzy63"]
[Result "1-0"]
[WhiteElo "2330"]
[BlackElo "2103"]
[TimeControl "180+2"]
[EndTime "15:04:05 PST"]
[Termination "marreta84 won by resignation"]

1. e4 {[%clk 0:03:01.9]} 1... e5 {[%clk 0:03:00.4]} 2. Nf3 {[%clk 0:03:02.8]}
2... Nc6 {[%clk 0:03:01.5]} 3. Bb5 {[%clk 0:03:03.7]} 3... a6 {[%clk 0:03:02]}
4. Ba4 {[%clk 0:03:04.5]} 4... Nf6 {[%clk 0:03:03.1]} 5. O-O {[%clk 0:03:05.9]}
5... Be7 {[%clk 0:03:04.3]} 6. d3 {[%clk 0:03:04.8]} 6... b5 {[%clk 0:03:04.2]}
7. Bb3 {[%clk 0:03:05.1]} 7... d6 {[%clk 0:03:05.6]} 8. a3 {[%clk 0:03:06.5]}
8... O-O {[%clk 0:02:59]} 9. h3 {[%clk 0:03:06.6]} 9... Na5 {[%clk 0:02:54.5]}
10. Ba2 {[%clk 0:03:06.8]} 10... c5 {[%clk 0:02:51.6]} 11. Nc3 {[%clk
0:02:57.1]} 11... Be6 {[%clk 0:02:52.1]} 12. Nd5 {[%clk 0:02:56.7]} 12... Nxd5
{[%clk 0:02:39.2]} 13. exd5 {[%clk 0:02:57]} 13... Bd7 {[%clk 0:02:40.1]} 14. b4
{[%clk 0:02:53.1]} 14... Nb7 {[%clk 0:02:40.4]} 15. c4 {[%clk 0:02:51.8]} 15...
a5 {[%clk 0:02:27.7]} 16. Bd2 {[%clk 0:02:48.2]} 16... Bf6 {[%clk 0:02:13.3]}
17. Bc3 {[%clk 0:02:27.3]} 17... axb4 {[%clk 0:02:06.9]} 18. axb4 {[%clk
0:02:26.7]} 18... cxb4 {[%clk 0:02:07]} 19. Bxb4 {[%clk 0:02:10.8]} 19... e4
{[%clk 0:01:59.1]} 20. dxe4 {[%clk 0:02:11.5]} 20... Bxa1 {[%clk 0:01:57.2]} 21.
Qxa1 {[%clk 0:02:13.4]} 21... bxc4 {[%clk 0:01:52.5]} 22. Qb2 {[%clk 0:02:05.9]}
22... Qb6 {[%clk 0:01:35.4]} 23. Rb1 {[%clk 0:01:47.8]} 23... Na5 {[%clk
0:01:29.1]} 24. Qd2 {[%clk 0:01:43.2]} 24... Rfc8 {[%clk 0:01:21.3]} 25. Bc3
{[%clk 0:01:39.9]} 25... Nb3 {[%clk 0:01:18.4]} 26. Qg5 {[%clk 0:01:36.1]} 26...
f6 {[%clk 0:00:40.3]} 27. Bxf6 {[%clk 0:01:35.3]} 27... g6 {[%clk 0:00:41.3]}
28. Qh6 {[%clk 0:01:33]} 1-0

[Event "*** MasterClass Titled Tuesday Blitz"]
[Site "Chess.com"]
[Date "2017.12.12"]
[Round "9"]
[White "twitchTriniCupid"]
[Black "toad"]
[Result "1-0"]
[WhiteElo "2226"]
[BlackElo "2170"]
[TimeControl "180+2"]
[EndTime "15:04:23 PST"]
[Termination "twitchTriniCupid won by resignation"]

1. d4 {[%clk 0:03:01.9]} 1... Nf6 {[%clk 0:03:00.6]} 2. c4 {[%clk 0:03:03.2]}
2... g6 {[%clk 0:03:01.7]} 3. Nc3 {[%clk 0:03:04.6]} 3... d5 {[%clk 0:03:03]} 4.
cxd5 {[%clk 0:03:03.2]} 4... Nxd5 {[%clk 0:03:04.9]} 5. Na4 {[%clk 0:03:04.2]}
5... Bg7 {[%clk 0:03:04.7]} 6. Nf3 {[%clk 0:03:00.8]} 6... O-O {[%clk 0:03:03]}
7. h3 {[%clk 0:02:58.4]} 7... Nd7 {[%clk 0:02:59.4]} 8. e4 {[%clk 0:02:58.4]}
8... N5b6 {[%clk 0:03:00.1]} 9. Nc3 {[%clk 0:02:55.5]} 9... e5 {[%clk
0:02:52.6]} 10. Be3 {[%clk 0:02:53.4]} 10... exd4 {[%clk 0:02:48.4]} 11. Bxd4
{[%clk 0:02:54.4]} 11... Bxd4 {[%clk 0:02:44.6]} 12. Qxd4 {[%clk 0:02:54.9]}
12... Nf6 {[%clk 0:02:28.1]} 13. O-O-O {[%clk 0:02:45.2]} 13... Qxd4 {[%clk
0:02:24.3]} 14. Rxd4 {[%clk 0:02:36.5]} 14... c5 {[%clk 0:02:05.6]} 15. Rd6
{[%clk 0:02:34.3]} 15... Kg7 {[%clk 0:01:55]} 16. e5 {[%clk 0:02:30.1]} 16...
Ne8 {[%clk 0:01:54.1]} 17. Rd8 {[%clk 0:02:21.6]} 17... Nc7 {[%clk 0:01:52.7]}
18. Rxf8 {[%clk 0:02:10.8]} 18... Kxf8 {[%clk 0:01:54.3]} 19. Ne4 {[%clk
0:02:09.4]} 19... Be6 {[%clk 0:01:41.7]} 20. Nxc5 {[%clk 0:02:06.3]} 20... Bxa2
{[%clk 0:01:40.4]} 21. b3 {[%clk 0:02:02.4]} 21... Ncd5 {[%clk 0:01:21.6]} 22.
Kb2 {[%clk 0:02:03]} 22... Nb4 {[%clk 0:01:15.8]} 23. Be2 {[%clk 0:01:51.5]}
23... Rc8 {[%clk 0:01:08.2]} 24. Rc1 {[%clk 0:01:51.5]} 24... N6d5 {[%clk
0:01:07]} 25. Ne6+ {[%clk 0:01:35.6]} 25... Ke7 {[%clk 0:01:06.1]} 26. Rxc8
{[%clk 0:01:37.5]} 26... Kxe6 {[%clk 0:01:07.5]} 27. Bc4 {[%clk 0:01:22.2]}
27... a6 {[%clk 0:00:55.3]} 28. Rd8 {[%clk 0:01:18.3]} 1-0

[Event "*** MasterClass Titled Tuesday Blitz"]
[Site "Chess.com"]
[Date "2017.12.12"]
[Round "9"]
[White "windking123"]
[Black "Tash_Boy"]
[Result "1-0"]
[WhiteElo "2376"]
[BlackElo "2452"]
[TimeControl "180+2"]
[EndTime "15:04:34 PST"]
[Termination "windking123 won by checkmate"]

1. e4 {[%clk 0:03:00.9]} 1... c5 {[%clk 0:02:58]} 2. d4 {[%clk 0:03:02.2]} 2...
cxd4 {[%clk 0:02:58.2]} 3. c3 {[%clk 0:03:03.9]} 3... Nf6 {[%clk 0:02:58.3]} 4.
e5 {[%clk 0:03:05.5]} 4... Nd5 {[%clk 0:02:59.4]} 5. cxd4 {[%clk 0:03:07]} 5...
Nc6 {[%clk 0:03:00.4]} 6. Nf3 {[%clk 0:03:07.9]} 6... d6 {[%clk 0:02:58.8]} 7.
Be2 {[%clk 0:03:09.4]} 7... g6 {[%clk 0:02:57.7]} 8. Nc3 {[%clk 0:03:09.2]} 8...
Nxc3 {[%clk 0:02:58.2]} 9. bxc3 {[%clk 0:03:11.1]} 9... dxe5 {[%clk 0:02:58.9]}
10. d5 {[%clk 0:03:11.5]} 10... Nb8 {[%clk 0:02:57.3]} 11. Nxe5 {[%clk 0:03:10]}
11... Bg7 {[%clk 0:02:58.5]} 12. f4 {[%clk 0:02:29]} 12... O-O {[%clk
0:02:56.9]} 13. O-O {[%clk 0:02:20.6]} 13... Nd7 {[%clk 0:02:57.5]} 14. c4
{[%clk 0:01:57.1]} 14... Nxe5 {[%clk 0:02:51.8]} 15. fxe5 {[%clk 0:01:59]} 15...
Bxe5 {[%clk 0:02:53.4]} 16. Rb1 {[%clk 0:01:56.3]} 16... Bg7 {[%clk 0:02:52.8]}
17. Ba3 {[%clk 0:01:21.5]} 17... b6 {[%clk 0:02:50.8]} 18. Bf3 {[%clk
0:01:17.5]} 18... Bf5 {[%clk 0:02:49.4]} 19. Rb3 {[%clk 0:01:13.2]} 19... Rc8
{[%clk 0:02:48.8]} 20. Re3 {[%clk 0:01:12]} 20... Re8 {[%clk 0:02:48.1]} 21. Be2
{[%clk 0:01:04.3]} 21... Bd7 {[%clk 0:02:28.9]} 22. Kh1 {[%clk 0:00:54.7]} 22...
e5 {[%clk 0:02:27.1]} 23. Bb2 {[%clk 0:00:36.2]} 23... f5 {[%clk 0:02:26.5]} 24.
Qb3 {[%clk 0:00:36.7]} 24... e4 {[%clk 0:02:25]} 25. Bxg7 {[%clk 0:00:33]} 25...
Kxg7 {[%clk 0:02:26.9]} 26. g4 {[%clk 0:00:25.2]} 26... Qf6 {[%clk 0:02:22.2]}
27. gxf5 {[%clk 0:00:25.2]} 27... Bxf5 {[%clk 0:02:21.8]} 28. Bg4 {[%clk
0:00:21.4]} 28... Qe5 {[%clk 0:02:13.6]} 29. Bxf5 {[%clk 0:00:21.4]} 29... gxf5
{[%clk 0:02:15.5]} 30. Rg3+ {[%clk 0:00:21]} 30... Kh8 {[%clk 0:02:16.2]} 31.
Rg5 {[%clk 0:00:22.1]} 31... Rf8 {[%clk 0:02:12.5]} 32. Qh3 {[%clk 0:00:22.5]}
32... Rxc4 {[%clk 0:02:10.2]} 33. Qh6 {[%clk 0:00:19]} 33... Qg7 {[%clk
0:02:08.9]} 34. Qxg7# {[%clk 0:00:18.8]} 1-0

[Event "*** MasterClass Titled Tuesday Blitz"]
[Site "Chess.com"]
[Date "2017.12.12"]
[Round "9"]
[White "Vamostodorecto"]
[Black "tteshan"]
[Result "1-0"]
[WhiteElo "2313"]
[BlackElo "2023"]
[TimeControl "180+2"]
[EndTime "15:05:02 PST"]
[Termination "Vamostodorecto won by checkmate"]

1. d4 {[%clk 0:03:01.9]} 1... d5 {[%clk 0:03:00.1]} 2. c4 {[%clk 0:02:57.2]}
2... dxc4 {[%clk 0:03:00.4]} 3. Nf3 {[%clk 0:02:57.5]} 3... Nf6 {[%clk
0:03:00.4]} 4. e3 {[%clk 0:02:59]} 4... Bg4 {[%clk 0:03:00.2]} 5. Bxc4 {[%clk
0:02:59.3]} 5... e6 {[%clk 0:03:01.7]} 6. Nc3 {[%clk 0:02:58.6]} 6... a6 {[%clk
0:03:01.8]} 7. h3 {[%clk 0:02:58.8]} 7... Bh5 {[%clk 0:03:02]} 8. g4 {[%clk
0:02:56.3]} 8... Bg6 {[%clk 0:03:02]} 9. Bf1 {[%clk 0:02:57.9]} 9... Bb4 {[%clk
0:02:56.5]} 10. Bg2 {[%clk 0:02:58.5]} 10... Nd5 {[%clk 0:02:54.9]} 11. O-O
{[%clk 0:02:58.1]} 11... Nxc3 {[%clk 0:02:54]} 12. bxc3 {[%clk 0:03:00]} 12...
Bxc3 {[%clk 0:02:53.5]} 13. Ba3 {[%clk 0:02:59.4]} 13... Bxa1 {[%clk 0:02:52.8]}
14. Qxa1 {[%clk 0:03:01.3]} 14... Nd7 {[%clk 0:02:48.5]} 15. Qb2 {[%clk
0:02:47.8]} 15... Be4 {[%clk 0:02:46]} 16. Rc1 {[%clk 0:02:37]} 16... Nb6 {[%clk
0:02:36.6]} 17. Ne5 {[%clk 0:02:17.7]} 17... Bxg2 {[%clk 0:02:33.5]} 18. Kxg2
{[%clk 0:02:19.6]} 18... Rb8 {[%clk 0:02:23.6]} 19. e4 {[%clk 0:02:16.3]} 19...
Nd7 {[%clk 0:02:21]} 20. Nc4 {[%clk 0:02:08.1]} 20... c5 {[%clk 0:02:17.1]} 21.
Nd6+ {[%clk 0:02:06.8]} 21... Ke7 {[%clk 0:02:10.1]} 22. dxc5 {[%clk 0:02:06.2]}
22... e5 {[%clk 0:01:21.2]} 23. Nxb7 {[%clk 0:01:55.6]} 23... Rxb7 {[%clk
0:01:13.1]} 24. Qxb7 {[%clk 0:01:54.6]} 24... Kf6 {[%clk 0:01:06]} 25. Qxa6+
{[%clk 0:01:49.6]} 25... Kg5 {[%clk 0:01:06.8]} 26. Kg3 {[%clk 0:01:47.3]} 26...
f6 {[%clk 0:01:01.6]} 27. Rd1 {[%clk 0:01:35.6]} 27... Qc7 {[%clk 0:00:43.6]}
28. Qe6 {[%clk 0:01:23.6]} 28... Kg6 {[%clk 0:00:28.6]} 29. h4 {[%clk
0:01:25.5]} 29... Nxc5 {[%clk 0:00:25.6]} 30. h5+ {[%clk 0:01:24.1]} 30... Kh6
{[%clk 0:00:18.5]} 31. Bc1+ {[%clk 0:01:21.1]} 31... g5 {[%clk 0:00:19.5]} 32.
Qxf6# {[%clk 0:01:12]} 1-0

[Event "*** MasterClass Titled Tuesday Blitz"]
[Site "Chess.com"]
[Date "2017.12.12"]
[Round "9"]
[White "calemcc"]
[Black "visa"]
[Result "1-0"]
[WhiteElo "2267"]
[BlackElo "2081"]
[TimeControl "180+2"]
[EndTime "15:05:40 PST"]
[Termination "calemcc won by checkmate"]

1. d4 {[%clk 0:03:01.9]} 1... e6 {[%clk 0:03:00.1]} 2. c4 {[%clk 0:03:02.9]}
2... b6 {[%clk 0:03:00.8]} 3. Nf3 {[%clk 0:03:04]} 3... Bb7 {[%clk 0:03:01.5]}
4. g3 {[%clk 0:03:05.5]} 4... f5 {[%clk 0:03:00.7]} 5. Bg2 {[%clk 0:03:06.6]}
5... Nf6 {[%clk 0:03:01.9]} 6. O-O {[%clk 0:03:08.1]} 6... Be7 {[%clk
0:03:03.3]} 7. Qc2 {[%clk 0:03:05.4]} 7... Ne4 {[%clk 0:03:01.1]} 8. Ne5 {[%clk
0:03:03.1]} 8... d6 {[%clk 0:02:58.5]} 9. Nd3 {[%clk 0:03:03.7]} 9... Qc8 {[%clk
0:02:58.5]} 10. f3 {[%clk 0:03:00]} 10... Nf6 {[%clk 0:02:55.6]} 11. Nc3 {[%clk
0:03:01.1]} 11... O-O {[%clk 0:02:55.8]} 12. b3 {[%clk 0:02:55.6]} 12... Nbd7
{[%clk 0:02:53.4]} 13. Nf4 {[%clk 0:02:54.6]} 13... Nb8 {[%clk 0:02:28.8]} 14.
e4 {[%clk 0:02:52.5]} 14... g5 {[%clk 0:02:23.7]} 15. Nfe2 {[%clk 0:02:52.2]}
15... Ne8 {[%clk 0:02:06.7]} 16. exf5 {[%clk 0:02:41.3]} 16... exf5 {[%clk
0:02:04.3]} 17. d5 {[%clk 0:02:42]} 17... Bf6 {[%clk 0:02:01.9]} 18. Bb2 {[%clk
0:02:41.6]} 18... Ng7 {[%clk 0:02:01.7]} 19. Nb5 {[%clk 0:02:40.8]} 19... Nd7
{[%clk 0:01:52.7]} 20. Nbd4 {[%clk 0:02:38.4]} 20... a5 {[%clk 0:01:43.1]} 21.
Rfe1 {[%clk 0:02:34.6]} 21... Nc5 {[%clk 0:01:43.9]} 22. Rad1 {[%clk 0:02:27.7]}
22... Qd7 {[%clk 0:01:41.4]} 23. Bh3 {[%clk 0:02:07]} 23... Be5 {[%clk
0:01:26.2]} 24. f4 {[%clk 0:02:03.2]} 24... Bxd4+ {[%clk 0:01:26.1]} 25. Bxd4
{[%clk 0:01:59.6]} 25... g4 {[%clk 0:01:27.2]} 26. Bg2 {[%clk 0:01:59.1]} 26...
Rae8 {[%clk 0:01:26.5]} 27. Nc3 {[%clk 0:01:59.6]} 27... c6 {[%clk 0:01:18.3]}
28. dxc6 {[%clk 0:01:58.4]} 28... Bxc6 {[%clk 0:01:18.8]} 29. Nd5 {[%clk
0:01:59.4]} 29... Bxd5 {[%clk 0:01:09.2]} 30. Bxd5+ {[%clk 0:02:01.3]} 30... Kh8
{[%clk 0:01:01.7]} 31. Qc3 {[%clk 0:01:57.9]} 31... h6 {[%clk 0:00:48]} 32. b4
{[%clk 0:01:30.5]} 32... axb4 {[%clk 0:00:44.6]} 33. Qxb4 {[%clk 0:01:31.8]}
33... Rxe1+ {[%clk 0:00:40.3]} 34. Rxe1 {[%clk 0:01:31.8]} 34... Nd3 {[%clk
0:00:41.3]} 35. Qd2 {[%clk 0:01:22.4]} 35... Nxe1 {[%clk 0:00:39.3]} 36. Qxe1
{[%clk 0:01:24.3]} 36... Re8 {[%clk 0:00:38.6]} 37. Qb4 {[%clk 0:01:25]} 37...
Qe7 {[%clk 0:00:32.6]} 38. Bf2 {[%clk 0:01:17]} 38... Qe2 {[%clk 0:00:25.6]} 39.
Qxb6 {[%clk 0:01:13.4]} 39... Qxa2 {[%clk 0:00:25.3]} 40. Qxd6 {[%clk
0:01:12.1]} 40... Qb1+ {[%clk 0:00:16.8]} 41. Kg2 {[%clk 0:01:12.4]} 41... Qd1
{[%clk 0:00:15.2]} 42. Qxh6# {[%clk 0:01:12.5]} 1-0

[Event "*** MasterClass Titled Tuesday Blitz"]
[Site "Chess.com"]
[Date "2017.12.12"]
[Round "9"]
[White "chessking2151"]
[Black "RoelandPruijssers"]
[Result "1-0"]
[WhiteElo "2393"]
[BlackElo "2458"]
[TimeControl "180+2"]
[EndTime "15:06:00 PST"]
[Termination "chessking2151 won by resignation"]

1. e4 {[%clk 0:03:01.9]} 1... c5 {[%clk 0:03:00.4]} 2. Nf3 {[%clk 0:03:03.1]}
2... d6 {[%clk 0:03:01.8]} 3. d4 {[%clk 0:03:02.2]} 3... cxd4 {[%clk 0:03:03.7]}
4. Nxd4 {[%clk 0:03:03]} 4... Nf6 {[%clk 0:03:05.3]} 5. Nc3 {[%clk 0:03:03.3]}
5... Nc6 {[%clk 0:03:06.8]} 6. Bg5 {[%clk 0:03:00.6]} 6... Bd7 {[%clk
0:03:07.9]} 7. Qd2 {[%clk 0:02:57.2]} 7... Nxd4 {[%clk 0:03:08.8]} 8. Qxd4
{[%clk 0:02:58]} 8... Qa5 {[%clk 0:03:10.4]} 9. f4 {[%clk 0:02:49.2]} 9... e5
{[%clk 0:02:58.1]} 10. Qd2 {[%clk 0:02:41.3]} 10... Ng4 {[%clk 0:02:40.9]} 11.
h3 {[%clk 0:02:00.8]} 11... exf4 {[%clk 0:02:40.6]} 12. Nd5 {[%clk 0:01:55.1]}
12... Qxd2+ {[%clk 0:02:20.6]} 13. Kxd2 {[%clk 0:01:56]} 13... f6 {[%clk
0:02:22.1]} 14. Bxf4 {[%clk 0:00:58.3]} 14... Nf2 {[%clk 0:01:51.6]} 15. Rg1
{[%clk 0:00:56.5]} 15... Nxe4+ {[%clk 0:01:35.2]} 16. Ke3 {[%clk 0:00:54.4]}
16... O-O-O {[%clk 0:01:36.5]} 17. Kxe4 {[%clk 0:00:49.5]} 17... Bc6 {[%clk
0:01:36.8]} 18. c4 {[%clk 0:00:48.6]} 18... g5 {[%clk 0:01:35]} 19. Bd2 {[%clk
0:00:45.3]} 19... f5+ {[%clk 0:01:30.5]} 20. Kd3 {[%clk 0:00:44.5]} 20... Bg7
{[%clk 0:01:20.4]} 21. Ne7+ {[%clk 0:00:42.7]} 21... Kc7 {[%clk 0:01:16.6]} 22.
Nxc6 {[%clk 0:00:38.6]} 22... bxc6 {[%clk 0:01:18.5]} 23. Bc3 {[%clk 0:00:39.6]}
23... Be5 {[%clk 0:01:17.4]} 24. Re1 {[%clk 0:00:34.1]} 24... h5 {[%clk
0:01:13.3]} 25. Kc2 {[%clk 0:00:32.1]} 25... Rhe8 {[%clk 0:01:13]} 26. Bd3
{[%clk 0:00:33]} 26... f4 {[%clk 0:01:12.8]} 27. Re4 {[%clk 0:00:28.4]} 27...
Bxc3 {[%clk 0:01:09.8]} 28. Kxc3 {[%clk 0:00:26.6]} 28... Rxe4 {[%clk
0:01:06.9]} 29. Bxe4 {[%clk 0:00:28.5]} 29... Re8 {[%clk 0:01:08]} 30. Bf3
{[%clk 0:00:27.8]} 30... Re3+ {[%clk 0:01:07.5]} 31. Kd2 {[%clk 0:00:28.5]}
31... h4 {[%clk 0:01:02]} 32. Re1 {[%clk 0:00:25]} 32... Rxe1 {[%clk 0:00:53]}
33. Kxe1 {[%clk 0:00:26.9]} 33... Kb6 {[%clk 0:00:54.5]} 34. Kd2 {[%clk
0:00:27.8]} 34... Kc5 {[%clk 0:00:56.4]} 35. Kc3 {[%clk 0:00:29.4]} 35... a5
{[%clk 0:00:56.8]} 36. b3 {[%clk 0:00:29.1]} 36... d5 {[%clk 0:00:57.6]} 37.
cxd5 {[%clk 0:00:28.9]} 37... cxd5 {[%clk 0:00:59.5]} 38. a3 {[%clk 0:00:29.3]}
1-0

[Event "*** MasterClass Titled Tuesday Blitz"]
[Site "Chess.com"]
[Date "2017.12.12"]
[Round "9"]
[White "HarutyunianTigranK"]
[Black "jcibarra"]
[Result "0-1"]
[WhiteElo "2626"]
[BlackElo "2714"]
[TimeControl "180+2"]
[EndTime "15:06:02 PST"]
[Termination "jcibarra won by resignation"]

1. Nf3 {[%clk 0:03:01.5]} 1... Nf6 {[%clk 0:03:01.2]} 2. c4 {[%clk 0:03:01.4]}
2... d6 {[%clk 0:03:02]} 3. d4 {[%clk 0:03:01.8]} 3... g6 {[%clk 0:03:02.4]} 4.
g3 {[%clk 0:03:02.9]} 4... Bf5 {[%clk 0:03:03.2]} 5. Bg2 {[%clk 0:03:04.5]} 5...
Bg7 {[%clk 0:03:03.7]} 6. O-O {[%clk 0:03:02.1]} 6... O-O {[%clk 0:03:04.6]} 7.
Nc3 {[%clk 0:02:59.8]} 7... Ne4 {[%clk 0:03:05.8]} 8. Bd2 {[%clk 0:02:46.7]}
8... c5 {[%clk 0:02:55.9]} 9. Nxe4 {[%clk 0:02:23.5]} 9... Bxe4 {[%clk
0:02:57.8]} 10. Bc3 {[%clk 0:02:24.4]} 10... Nc6 {[%clk 0:02:55.4]} 11. d5
{[%clk 0:02:17.4]} 11... Bxc3 {[%clk 0:02:52.8]} 12. bxc3 {[%clk 0:02:19.3]}
12... Na5 {[%clk 0:02:52]} 13. Nd2 {[%clk 0:01:54.4]} 13... Bxg2 {[%clk
0:02:53.9]} 14. Kxg2 {[%clk 0:01:55.9]} 14... Qd7 {[%clk 0:02:44.7]} 15. Rb1
{[%clk 0:01:52.4]} 15... b6 {[%clk 0:02:43.6]} 16. e4 {[%clk 0:01:53.3]} 16...
e6 {[%clk 0:02:39]} 17. h4 {[%clk 0:01:50.4]} 17... f5 {[%clk 0:02:28.8]} 18. h5
{[%clk 0:01:47.4]} 18... g5 {[%clk 0:02:17.8]} 19. h6 {[%clk 0:01:36.3]} 19...
exd5 {[%clk 0:02:13.2]} 20. cxd5 {[%clk 0:01:32.7]} 20... fxe4 {[%clk
0:02:04.2]} 21. Nxe4 {[%clk 0:01:27.7]} 21... Rae8 {[%clk 0:01:35.9]} 22. Nxg5
{[%clk 0:01:21.6]} 22... Qf5 {[%clk 0:01:34.1]} 23. Ne6 {[%clk 0:01:16.5]} 23...
Rf6 {[%clk 0:01:34.3]} 24. g4 {[%clk 0:00:38.3]} 24... Qe4+ {[%clk 0:01:35.5]}
25. f3 {[%clk 0:00:39.2]} 25... Qe3 {[%clk 0:01:37]} 26. g5 {[%clk 0:00:20.5]}
26... Rfxe6 {[%clk 0:01:27.9]} 27. dxe6 {[%clk 0:00:20.8]} 27... Qxg5+ {[%clk
0:01:29.5]} 28. Kf2 {[%clk 0:00:21.1]} 28... Qh4+ {[%clk 0:01:29.3]} 29. Kg1
{[%clk 0:00:10.2]} 29... Qg3+ {[%clk 0:01:28.8]} 30. Kh1 {[%clk 0:00:10.3]}
30... Qh3+ {[%clk 0:01:30.1]} 31. Kg1 {[%clk 0:00:11.2]} 31... Qg3+ {[%clk
0:01:10.8]} 32. Kh1 {[%clk 0:00:11.9]} 32... Qh3+ {[%clk 0:01:08.3]} 33. Kg1
{[%clk 0:00:13]} 33... Kh8 {[%clk 0:01:04.2]} 34. Qd5 {[%clk 0:00:03.2]} 34...
Qg3+ {[%clk 0:00:46.2]} 35. Kh1 {[%clk 0:00:04.2]} 35... Qh4+ {[%clk 0:00:47.8]}
36. Kg2 {[%clk 0:00:04.8]} 36... Rg8+ {[%clk 0:00:49.7]} 0-1